[Event "FIDE WCCC U12 2018"]
[Site "Santiago de Compostela"]
[Date "2018.11.07"]
[Round "3"]
[White "Amilal, Munkhdalai"]
[Black "Razafindratsima, Timothe"]
[Result "1/2-1/2"]
[ECO "C75"]
[WhiteElo "1864"]
[BlackElo "2092"]
[Annotator "NA RC"]
[PlyCount "153"]
[EventDate "2018.11.04"]
[EventType "swiss"]
[EventCountry "ESP"]
[SourceTitle "playchess.com"]
[Source "ChessBase"]
[SourceQuality "1"]
[TimeControl "40/5400+30:1800+30"]

{[%evp 11,153,39,32767,32767,32767,32767,45,46,46,18,55,46,64,0,6,-5,0,-19,-20,-22,-14,-40,-16,-52,-27,-49,-31,-66,11,1,32767,32767,32767,-6,28,18,33,23,32767,32767,44,32767,31,32767,16,32767,-17,-37,-9,-45,32767,32767,32767,32767,32767,32767,32767,32767,32767,32767,32767,32767,32767,32767,32767,32767,32767,32767,32767,32767,32767,32767,32767,32767,32767,32767,32767,-86,32767,32767,32767,32767,32767,32767,32767,32767,32767,32767,32767,32767,32767,32767,32767,32767,32767,32767,32767,32767,32767,32767,32767,32767,32767,32767,32767,32767,32767,32767,-8,0,0,0,0,-15,-9,-9,-11,-10,142,158,204,225,259,253,233,246,530,0,0,0,0,0,0,0,0,0,0,0,0,0,0,32767,0,0]} 1. e4 {[%emt 0:00:00]} e5 {[%emt 0:00:00]} 2. Nf3 {[%emt 0:00:00]} Nc6 {[%emt 0:00:00]} 3. Bb5 {[%emt 0:00:00]} a6 {[%emt 0:00:00]} 4. Ba4 {[%emt 0:00:00]} d6 {[%emt 0:00:00]} 5. c3 {[%emt 0:00:02]} Bd7 {[%emt 0:00:31]} 6. O-O {[%emt 0:00:24]} Nf6 {[%emt 0:00:51]} 7. Re1 {[%emt 0:00:21]} g6 {[%emt 0:01:09]} 8. d4 {[%emt 0:01:19]} b5 {[%emt 0:00:27]} 9. Bc2 {[%emt 0:08:36] LiveBook: 22 Games} Bg7 {[%emt 0:00:39]} 10. dxe5 {[%emt 0:10:24] C76: Ruy Lopez: Deferred Steinitz: 5 c3 Bd7 6 d4 g6} (10. Nbd2 O-O 11. dxe5 Nxe5 12. Nxe5 dxe5 13. Nb3 Qe7 14. Be3 Rfd8 15. Qf3 h5 16. h3 Nh7 17. Nc5 Bc6 18. Bb3 Bf6 {½-½ (30) Perez Ponsa,F (2553)-Adams,M (2709) Caleta 2018}) 10... dxe5 {[%emt 0:01:03]} 11. Be3 {[%emt 0:01:11]} O-O {[%emt 0:01:22]} 12. Bc5 {[%emt 0:03:24]} (12. Nbd2 $14) 12... Re8 {[%emt 0:00:35]} 13. Nbd2 {[%emt 0:00:49]} Na5 {[%emt 0:03:00]} 14. Qe2 {[%emt 0:07:13]} Nb7 {[%emt 0:01:15]} 15. Be3 {[%emt 0:03:39]} c5 {[%emt 0:01:46]} 16. c4 $146 {[%emt 0:06:01]} ({Predecessor:} 16. Bg5 h6 17. Bxf6 Qxf6 {1-0 (47) Daggupati,B (2273)-Tang,A (2509) Philadelphia 2018}) 16... Qc7 {[%emt 0:02:14]} 17. Bd3 {[%emt 0:05:32]} Nd6 {[%emt 0:04:50]} 18. Rac1 {[%emt 0:08:22]} b4 $1 {[%emt 0:06:01]} 19. Bg5 {[%emt 0:05:48]} h6 {[%emt 0:02:50]} ({Black should play} 19... Nh5 $15) 20. Bxf6 $1 {[%emt 0:03:55]} Bxf6 {[%emt 0:01:12]} 21. Nf1 {[%emt 0:00:05]} Bg7 {[%emt 0:01:38]} 22. Ne3 {[%emt 0:00:12]} Bc6 {[%emt 0:00:25]} 23. Nd5 {[%emt 0:03:41]} Qa7 {[%emt 0:12:26]} 24. Nd2 {[%emt 0:05:58]} Rac8 {[%emt 0:09:45]} 25. Red1 {[%emt 0:05:15]} Nb7 {[%emt 0:07:17]} 26. Qe3 {[%emt 0:00:30]} a5 {[%emt 0:01:59]} 27. h3 {[%emt 0:06:06]} Nd8 {[%emt 0:02:29]} 28. Ra1 {[%emt 0:00:30]} Ne6 {[%emt 0:17:18]} 29. Nf3 {[%emt 0:05:40]} (29. a3 $5 {[%cal Ra3b4]} b3 30. a4 $11 (30. Nxb3 Rb8 $15)) 29... Qb8 {[%emt 0:04:22]} 30. Rac1 {[%emt 0:01:03]} Nf4 {[%emt 0:01:21]} 31. Bb1 {[%emt 0:00:32]} Ba8 32. Kh2 {[%emt 0:00:59]} h5 {[%emt 0:05:21]} 33. g3 {[%emt 0:00:54]} Ne6 {[%emt 0:01:03]} 34. Bc2 {[%emt 0:00:30]} Qa7 {[%emt 0:00:30]} 35. Ba4 {[%emt 0:02:03]} Bc6 {[%emt 0:00:59]} 36. Bc2 {[%emt 0:00:41]} Rcd8 {[%emt 0:00:41]} 37. Ra1 {[%emt 0:00:28]} Nd4 38. Nxd4 {[%emt 0:00:14]} exd4 {[%emt 0:01:03]} 39. Qd3 {[%emt 0:00:27]} Qd7 {[%emt 0:04:51]} 40. Re1 {[%emt 0:00:00]} Bb7 {[%emt 0:00:00]} 41. Rh1 {[%emt 0:08:38]} h4 42. Rae1 {[%emt 0:00:06]} hxg3+ {[%emt 0:06:13]} 43. fxg3 {[%emt 0:08:20]} Re5 44. Qd2 {[%emt 0:00:08]} Rh5 {[%emt 0:03:55]} 45. Kg2 {[%emt 0:02:01]} Qd6 46. Bd3 {[%emt 0:02:44]} Bh6 {[%emt 0:05:49]} 47. Qf2 Bxd5 {[%emt 0:09:11]} 48. cxd5 {[%emt 0:01:17]} Be3 {[%emt 0:00:18]} 49. Qf3 {[%emt 0:00:05]} Re5 {[%emt 0:00:41]} 50. Rhf1 {[%emt 0:00:47]} Qe7 {[%emt 0:00:24]} 51. Qf6 {[%emt 0:04:07]} Rxe4 {[%emt 0:02:09]} 52. Qxf7+ {[%emt 0:09:45]} Qxf7 {[%emt 0:00:10]} 53. Rxf7 {[%emt 0:00:06]} Kxf7 {[%emt 0:00:24]} 54. Bxe4 {[%emt 0:00:11]} c4 {[%emt 0:00:22]} 55. b3 {[%emt 0:01:09]} Re8 {[%emt 0:03:35]} 56. Kf3 {[%emt 0:01:12]} c3 {[%emt 0:00:47]} 57. Bd3 {[%emt 0:02:02]} Rc8 {[%emt 0:01:29]} 58. Re2 {[%emt 0:00:15]} Bd2 {[%emt 0:00:20]} 59. Ke4 {[%emt 0:01:42]} Re8+ {[%emt 0:03:20]} 60. Kf3 {[%emt 0:00:12]} Rc8 {[%emt 0:05:21]} 61. Ke4 {[%emt 0:00:05]} a4 {[%emt 0:02:52]} 62. Kxd4 {[%emt 0:00:18]} c2 {[%emt 0:00:19]} 63. Bxc2 $1 {[%emt 0:01:20]} Rxc2 {[%emt 0:00:04]} 64. bxa4 {[%emt 0:01:03]} Rxa2 {[%emt 0:01:02] [#]} (64... Bc3+ $11 65. Kd3 Rxe2 66. Kxe2 Ke7) 65. Kc4 $1 {[%emt 0:00:08]} ({Don't blunder} 65. Kd3 $2 b3 $19) 65... Rb2 {[%emt 0:01:46]} 66. a5 {[%emt 0:00:32]} Ra2 {[%emt 0:00:49] [#]} 67. a6 $1 {[%emt 0:00:11]} Rxa6 {[%emt 0:00:29]} 68. Rxd2 {[%emt 0:00:05]} Ra3 {[%emt 0:00:06]} 69. Rd3 $2 {[%emt 0:00:38]} ({Not} 69. Kxb4 Rxg3 70. Rh2 Ke7 $16) (69. Rg2 $18) 69... Rxd3 {[%emt 0:00:48]} 70. Kxd3 {[%emt 0:00:04]} Ke7 {[%emt 0:00:05]} 71. h4 {[%emt 0:01:04]} Kd6 {[%emt 0:00:05]} 72. Kc4 {[%emt 0:01:35]} b3 {[%emt 0:00:08]} 73. Kxb3 {[%emt 0:00:04]} Kxd5 74. Kc3 {[%emt 0:00:10]} Ke4 {[%emt 0:00:10]} 75. g4 {[%emt 0:00:07]} Kf4 {[%emt 0:00:07]} 76. h5 {[%emt 0:00:12]} gxh5 $11 {[%emt 0:00:03]} 77. gxh5 {[%emt 0:00:05]} 1/2-1/2

[Event "FIDE WCCC U12 2018"]
[Site "Santiago de Compostela"]
[Date "2018.11.07"]
[Round "3"]
[White "Del Prado Rodriguez, Xulio"]
[Black "Pavesi, Brando"]
[Result "1-0"]
[ECO "D02"]
[WhiteElo "1734"]
[BlackElo "2073"]
[Annotator "NA RC"]
[PlyCount "105"]
[EventDate "2018.11.04"]
[EventType "swiss"]
[EventCountry "ESP"]
[SourceTitle "playchess.com"]
[Source "ChessBase"]
[SourceQuality "1"]
[TimeControl "40/5400+30:1800+30"]

{[%evp 8,105,23,5,18,30,34,18,23,35,50,47,38,40,48,41,42,47,45,41,44,47,52,50,61,54,43,16,27,0,68,32,79,65,75,83,83,77,32767,106,70,35,38,32767,272,32767,242,264,310,81,258,106,112,32767,32767,177,825,649,423,32767,537,32767,12836,32767,4133,12841,12842,6266,12846,32767,32767,32767,32767,29974,7658,29975,29971,0,0,0,12847,29979,29975,29980,12850,29981,29982,32767,32767,32767,32767,32767,32767,32767,32767,32767,32767,29989,29989,29990]} 1. Nf3 {[%emt 0:00:00]} d5 {[%emt 0:00:09]} 2. d4 {[%emt 0:00:29]} Nf6 {[%emt 0:00:45]} 3. c4 {[%emt 0:00:40]} e6 {[%emt 0:00:51]} 4. g3 {[%emt 0:01:06]} c6 {[%emt 0:01:36]} 5. Qc2 {[%emt 0:01:17]} Bd6 {[%emt 0:03:24]} 6. Bg2 {[%emt 0:02:30]} Nbd7 {[%emt 0:03:52]} 7. O-O {[%emt 0:01:56]} O-O {[%emt 0:00:06]} 8. b3 {[%emt 0:04:23]} Qe7 {[%emt 0:10:54]} 9. Nc3 {[%emt 0:09:00]} b6 {[%emt 0:20:12]} 10. e4 {[%emt 0:04:29]} dxe4 {[%emt 0:01:59]} 11. Nxe4 {[%emt 0:00:51]} Nxe4 {[%emt 0:14:34]} 12. Qxe4 {[%emt 0:00:23]} Bb7 {[%emt 0:00:31]} 13. Re1 {[%emt 0:10:14] LiveBook: 4 Games E01: Catalan: Early deviations} Nf6 {[%emt 0:06:09]} 14. Qc2 {[%emt 0:01:35]} Rfe8 $146 {[%emt 0:06:46]} ({Predecessor:} 14... Rac8 15. Bb2 Rfd8 16. Rad1 Qc7 17. c5 Be7 18. Ne5 Nd7 19. b4 Nxe5 20. dxe5 bxc5 21. bxc5 Qa5 22. Rxd8+ Rxd8 23. Rc1 h6 24. Bf3 Ba6 {½-½ (24) Nikcevic,N (2540)-Prentos,K (2260) Athens 1997}) 15. Bb2 {[%emt 0:05:02]} a5 {[%emt 0:04:27]} 16. Ne5 {[%emt 0:03:31]} Qc7 {[%emt 0:04:12]} 17. Rac1 {[%emt 0:05:09]} c5 {[%emt 0:01:34]} 18. Nf3 {[%emt 0:05:57]} a4 {[%emt 0:02:29]} (18... cxd4 $11 19. Bxd4 Bb4) 19. dxc5 {[%emt 0:03:02]} Bxc5 {[%emt 0:02:12] [#]} (19... bxc5 $11 {remains equal.} 20. bxa4 Bc6) 20. Ng5 $1 {[%emt 0:03:57]} axb3 {[%emt 0:03:51]} 21. axb3 {[%emt 0:00:38]} Ra2 {[%emt 0:02:12] [#]} 22. Ra1 $1 {[%emt 0:04:56]} Rea8 {[%emt 0:01:27]} 23. Rxa2 {[%emt 0:02:45]} Rxa2 {[%emt 0:00:05] [#]} 24. Ra1 {[%emt 0:00:15]} (24. Qb1 $1 $16 {[%cal Rb1a2]} Bxg2 25. Qxa2) 24... Rxa1+ $1 25. Bxa1 {[%emt 0:00:16]} Be7 $2 {[%emt 0:07:45]} (25... h6 $1 $14 26. Bxf6 hxg5 27. Bxg5 Qe5 28. Bxb7 Qxg5) 26. Bxb7 {[%emt 0:05:11]} Qxb7 {[%emt 0:00:20]} 27. Bxf6 $1 {[%emt 0:00:11]} Bxf6 {[%emt 0:00:07]} 28. Qxh7+ {[%emt 0:00:14]} Kf8 {[%emt 0:00:06]} 29. Qe4 {[%emt 0:01:22]} (29. Qh8+ $18 {and the rest is easy.} Ke7 30. Nh7) 29... Qxe4 {[%emt 0:01:19]} 30. Nxe4 {[%emt 0:00:07]} Be7 {[%emt 0:00:14] [#]} 31. f4 $1 {[%emt 0:03:53]} Bc5+ $2 {[%emt 0:01:45]} (31... f5 $16) 32. Nxc5 {[%emt 0:00:58]} bxc5 {[%emt 0:00:04]} 33. Kf2 {[%emt 0:00:12]} Ke7 {[%emt 0:00:11]} 34. g4 {[%emt 0:01:39]} e5 {[%emt 0:01:16]} 35. fxe5 {[%emt 0:01:43]} Ke6 {[%emt 0:00:26]} 36. Ke3 {[%emt 0:00:34]} Kxe5 {[%emt 0:00:31]} 37. h4 {[%emt 0:00:32]} f5 {[%emt 0:00:44]} 38. gxf5 {[%emt 0:01:41]} Kxf5 {[%emt 0:00:08]} 39. Kf3 {[%emt 0:00:07]} g6 {[%emt 0:01:14]} 40. Kg3 {[%emt 0:00:00]} Kf6 41. Kf4 {[%emt 0:00:35]} Ke6 $11 {[%emt 0:01:38]} 42. Kg5 $2 {[%emt 0:02:46]} (42. Ke3 Kd7) 42... Kf7 {[%emt 0:02:23]} 43. Kf4 {[%emt 0:00:44]} Kf6 $2 {[%emt 0:06:11]} 44. Ke4 {[%emt 0:00:06]} Ke6 {[%emt 0:00:05]} 45. Kd3 {[%emt 0:00:49]} Kf5 {[%emt 0:00:33]} 46. Kc3 {[%emt 0:00:08]} Kg4 {[%emt 0:00:04]} 47. b4 {[%emt 0:00:04]} cxb4+ {[%emt 0:00:03]} 48. Kxb4 {[%emt 0:00:05]} Kxh4 {[%emt 0:00:03]} 49. c5 {[%emt 0:00:13]} g5 {[%emt 0:00:03]} 50. c6 {[%emt 0:00:01]} g4 {[%emt 0:00:04]} 51. c7 {[%emt 0:00:07]} g3 {[%emt 0:00:04]} 52. c8=Q {[%emt 0:00:08]} g2 {[%emt 0:00:10]} 53. Qc5 {[%emt 0:00:10]} 1-0

[Event "FIDE WCCC U12 2018"]
[Site "Santiago de Compostela"]
[Date "2018.11.07"]
[Round "3"]
[White "Springis, Jevgenijs"]
[Black "Silich, Yahor"]
[Result "0-1"]
[ECO "B34"]
[WhiteElo "1665"]
[BlackElo "2058"]
[Annotator "NA RC"]
[PlyCount "76"]
[EventDate "2018.11.04"]
[EventType "swiss"]
[EventCountry "ESP"]
[SourceTitle "playchess.com"]
[Source "ChessBase"]
[SourceQuality "1"]
[TimeControl "40/5400+30:1800+30"]

{[%evp 10,76,15,32767,11,-3,32767,0,4,0,12,0,1,0,18,12,16,-95,-85,-92,-87,-94,-77,-75,-75,-68,-56,-63,-60,-52,-56,-79,-66,-87,-95,-95,-89,-78,-59,-72,-29,32767,-163,-195,-184,-205,-77,32767,32767,32767,32767,32767,-194,32767,32767,-406,-391,-412,-407,-522,-558,-593,32767,-689,32767,-991,-1078,32767,-1832]} 1. e4 {[%emt 0:00:00]} c5 {[%emt 0:00:00]} 2. Nf3 {[%emt 0:00:00]} Nc6 {[%emt 0:00:00]} 3. Nc3 {[%emt 0:00:09]} g6 {[%emt 0:00:18]} 4. d4 {[%emt 0:01:48]} cxd4 {[%emt 0:00:14]} 5. Nxd4 {[%emt 0:00:35]} Bg7 {[%emt 0:00:39]} 6. Be3 {[%emt 0:02:29]} Nf6 {[%emt 0:00:40] LiveBook: 6062 Games} 7. Nxc6 {[%emt 0:09:21]} bxc6 {[%emt 0:00:07]} 8. Bc4 {[%emt 0:01:58]} d6 {[%emt 0:09:03]} 9. Qd2 {[%emt 0:07:03] B35: Sicilian: Accelerated Dragon with 5 Nc3: main line} (9. O-O O-O 10. Bb3 Be6 {½-½ (10) Ascic,P (2293)-Radocaj,D (2309) Bol 2013}) 9... O-O {[%emt 0:03:05]} 10. O-O {[%emt 0:10:01]} Qc7 {[%emt 0:06:52]} 11. Bb3 {[%emt 0:13:27]} Ba6 {[%emt 0:14:58]} 12. Rfe1 {[%emt 0:03:27]} Ng4 {[%emt 0:06:29]} 13. h3 {[%emt 0:06:49]} (13. Bf4 $11 {remains equal.}) 13... Nxe3 {[%emt 0:00:32]} 14. Qxe3 {[%emt 0:01:00]} Rab8 $146 {[%emt 0:02:18]} ({Predecessor:} 14... e6 15. Rab1 h5 16. Ne2 {1-0 (45) Goldstrass,B (1896)-Reiffenrath,C (1956) Suedwestfalen 2001}) 15. Rab1 {[%emt 0:07:24]} Bc8 {[%emt 0:09:53]} 16. Ne2 {[%emt 0:07:12]} Qb6 {[%emt 0:02:57]} 17. Qxb6 {[%emt 0:03:55]} axb6 {[%emt 0:00:25]} 18. c3 {[%emt 0:03:18]} Bb7 {[%emt 0:05:21]} 19. Rbd1 {[%emt 0:03:35]} Rfd8 {[%emt 0:02:49]} 20. Rd3 {[%emt 0:07:02]} Ra8 {[%emt 0:04:27]} 21. f4 {[%emt 0:04:50]} c5 {[%emt 0:01:40]} 22. Nc1 {[%emt 0:00:57]} b5 {[%emt 0:02:54]} 23. Bd5 {[%emt 0:00:42]} c4 {[%emt 0:02:38]} 24. Rd2 {[%emt 0:00:46] [#]} Bxd5 {[%emt 0:05:40]} (24... b4 $1 $17 {[%cal Rb4c3][%mdl 512]} 25. Bxb7 (25. cxb4 c3) 25... Ra7) 25. Rxd5 {[%emt 0:00:11] [#]} b4 $1 {[%emt 0:00:15]} 26. Re2 {[%emt 0:03:37]} bxc3 {[%emt 0:00:50]} 27. bxc3 {[%emt 0:00:03] [#]} Rdb8 {[%emt 0:01:08]} (27... Ra3 $1 $19 28. Rc2 Rxc3 29. Rxc3 Bxc3) 28. e5 {[%emt 0:01:39]} dxe5 {[%emt 0:00:11]} 29. fxe5 {[%emt 0:00:07]} Bh6 {[%emt 0:00:13]} 30. Rc2 {[%emt 0:00:48]} Rb1 {[%emt 0:00:22]} 31. Rd1 {[%emt 0:00:09]} Ra1 {[%emt 0:04:32]} 32. Rf1 $2 {[%emt 0:00:41]} (32. g3) 32... Rb8 {[%emt 0:01:14]} 33. Kf2 {[%emt 0:00:54]} Rbb1 {[%emt 0:00:14]} 34. Rd1 {[%emt 0:00:26]} Rxc1 {[%emt 0:00:15]} 35. Rcxc1 {[%emt 0:00:11]} Bxc1 {[%emt 0:01:52]} 36. a4 {[%emt 0:00:47]} Be3+ {[%emt 0:00:41]} 37. Ke2 {[%emt 0:00:21]} Rxd1 {[%emt 0:00:02]} 38. Kxd1 {[%emt 0:00:05]} Bb6 $19 {[%emt 0:00:13]} 0-1

[Event "FIDE WCCC U12 2018"]
[Site "Santiago de Compostela"]
[Date "2018.11.09"]
[Round "5"]
[White "Xu, Arthur"]
[Black "Djurovic, Peko"]
[Result "1-0"]
[ECO "B66"]
[WhiteElo "2034"]
[BlackElo "1887"]
[Annotator "NA RC"]
[PlyCount "105"]
[EventDate "2018.11.04"]
[EventType "swiss"]
[EventCountry "ESP"]
[SourceTitle "playchess.com"]
[Source "ChessBase"]
[SourceQuality "1"]
[TimeControl "40/5400+30:1800+30"]

{[%evp 22,104,27,-67,-34,-44,-35,-37,-35,-44,-8,-26,32767,-25,-36,-59,0,3,0,32767,32767,32767,177,132,77,40,32767,32767,32767,32767,32767,32767,32767,147,163,164,220,210,244,229,32767,32767,282,32767,32767,284,32767,32767,349,391,388,400,32767,32767,375,398,521,377,32767,364,402,283,430,414,524,579,32767,586,32767,591,32767,895,1151,1002,872,1033,947,32767,32767,32767,29995,1133,29996,29997,29999]} 1. e4 {[%emt 0:00:00]} c5 {[%emt 0:00:00]} 2. Nf3 {[%emt 0:00:00]} Nc6 {[%emt 0:00:00]} 3. d4 {[%emt 0:00:00]} cxd4 {[%emt 0:00:06]} 4. Nxd4 {[%emt 0:00:00]} Nf6 {[%emt 0:00:22]} 5. Nc3 {[%emt 0:00:07]} d6 {[%emt 0:01:11]} 6. Bg5 {[%emt 0:00:10]} e6 {[%emt 0:00:14]} 7. Qd2 {[%emt 0:00:10]} a6 {[%emt 0:00:30]} 8. O-O-O {[%emt 0:00:11]} h6 {[%emt 0:00:09]} 9. Nxc6 {[%emt 0:00:09]} bxc6 {[%emt 0:00:21]} 10. Bf4 {[%emt 0:00:10]} d5 {[%emt 0:03:36]} 11. Qe3 {[%emt 0:00:12]} Bb4 {[%emt 0:05:34]} 12. e5 $146 {[%emt 0:00:17] B66: Sicilian: Richter-Rauzer: 7...a6 8 0-0-0 h6} ({Predecessor:} 12. Be2 $11 O-O 13. e5 Nd7 14. Qg3 Kh8 15. Qh3 Kg8 16. Rd3 Be7 17. Rg3 Bh4 18. Bxh6 g6 19. Rg4 Bxf2 20. Rf1 Bc5 21. Bg5 Be7 22. Bxe7 Qxe7 23. Qh6 Nxe5 24. Rh4 {1-0 (24) Wang,H (2709)-Ivanchuk,V (2726) Huaian 2017}) 12... Nd7 {[%emt 0:11:00]} 13. Qg3 {[%emt 0:08:27]} Kf8 {[%emt 0:09:52]} 14. Kb1 {[%emt 0:04:35]} Rb8 {[%emt 0:08:02]} 15. Bc1 {[%emt 0:03:44]} Qa5 {[%emt 0:13:33]} 16. Ne2 {[%emt 0:05:12]} Nc5 {[%emt 0:16:06]} 17. Qe3 {[%emt 0:33:11]} Ne4 {[%emt 0:18:27]} 18. Ka1 {[%emt 0:24:01]} Qc5 {[%emt 0:07:22]} (18... Bc5 $17 19. Nd4 Rb4) 19. Nd4 {[%emt 0:04:39]} Qb6 {[%emt 0:00:29]} 20. Nb3 {[%emt 0:05:08]} Qxe3 {[%emt 0:02:28]} 21. Bxe3 {[%emt 0:00:13]} a5 {[%emt 0:00:21]} 22. f3 {[%emt 0:02:51]} Nc3 {[%emt 0:00:44]} 23. Rd3 {[%emt 0:02:08]} (23. bxc3 $16 Bxc3+ 24. Kb1) 23... Nb5 {[%emt 0:00:25]} 24. c3 {[%emt 0:00:29]} Be7 {[%emt 0:00:30]} 25. Nxa5 {[%emt 0:00:23]} Bd7 {[%emt 0:00:30]} 26. Nb3 {[%emt 0:00:22]} Nc7 {[%emt 0:00:32]} 27. Nc5 {[%emt 0:00:18]} Ke8 {[%emt 0:00:07]} 28. Be2 {[%emt 0:01:05]} Rb5 {[%emt 0:00:44]} (28... Bc8 {was called for.} 29. Rd2 Ra8) 29. b4 {[%emt 0:00:19]} Bxc5 {[%emt 0:00:24]} 30. Bxc5 {[%emt 0:00:09]} f6 {[%emt 0:00:37]} 31. Bd6 {[%emt 0:00:55]} Rb7 {[%emt 0:00:21]} 32. f4 {[%emt 0:00:50]} Kf7 {[%emt 0:00:04]} 33. exf6 {[%emt 0:00:06]} Kxf6 {[%emt 0:00:42]} 34. Be5+ {[%emt 0:00:07]} Ke7 {[%emt 0:00:06]} 35. Bxg7 {[%emt 0:00:19]} Rg8 {[%emt 0:00:35]} 36. Rg3 {[%emt 0:00:17]} Ne8 {[%emt 0:00:34]} 37. Bxh6 {[%emt 0:00:13]} Rxg3 {[%emt 0:00:23]} 38. hxg3 {[%emt 0:00:05]} Nd6 {[%emt 0:00:04]} (38... Kf7 $142 39. a4 Nd6) 39. Bg5+ {[%emt 0:00:12]} Kf7 {[%emt 0:00:07]} 40. Kb2 {[%emt 0:00:00]} c5 {[%emt 0:00:00]} 41. a3 {[%emt 0:13:59]} c4 {[%emt 0:03:53]} (41... Nc4+ {is a better defense.} 42. Bxc4 dxc4) 42. g4 {[%emt 0:11:33]} Ra7 {[%emt 0:03:40]} 43. Bd8 {[%emt 0:02:05]} Ne4 {[%emt 0:01:18]} 44. Bb6 {[%emt 0:00:51]} Ra6 {[%emt 0:00:19]} 45. Bd4 {[%emt 0:00:17]} Kg6 {[%emt 0:01:09]} 46. Rh8 {[%emt 0:02:01]} Nd6 {[%emt 0:02:23]} 47. Rg8+ {[%emt 0:01:08]} Kf7 {[%emt 0:00:02]} 48. Rg7+ {[%emt 0:00:07]} Ke8 {[%emt 0:00:04]} 49. Bf6 {[%emt 0:01:54]} Bc8 {[%emt 0:00:39]} 50. g5 {[%emt 0:02:48]} Nf5 {[%emt 0:03:22]} 51. Bh5+ {[%emt 0:00:20]} Kf8 {[%emt 0:00:08]} 52. Rh7 {[%emt 0:00:17]} Rxa3 {[%emt 0:01:41]} 53. Rh8# {[%emt 0:00:07]} 1-0